Cogmind - Beta 13 @@@ ROGUE MODE // 2024.05.24 @ 20:41:41 Player: vault Result: Destroyed by S-10 Pest with Light Assault Rifle Performance ------------- Evolutions (2) 1000 Regions Visited (5) 1000 Robots Destroyed (26) 130 Value Destroyed (612) 612 Prototype IDs (0) 0 Alien Tech Used (0) 0 Bonus (0) 0 TOTAL SCORE: 2742 Bonus ------- None Cogmind --------- Core Integrity 0/550 Matter 300/300 Energy 250/250 System Corruption 0% Temperature Cool (0) Movement Walking (260) Ox2 Location -8/Materials Parts ------- > --- POWER (1) -------- Ion Engine > --- PROPULSION (6) --- Aluminum Leg > --- UTILITY (2) ------ Large Storage Unit > --- WEAPON (2) ------- Light Assault Rifle Light Assault Rifle > --- INVENTORY (15) --- Light Ion Engine Light Ion Engine Light Ion Engine Light Nuclear Core Light Angular Momentum Engine Flight Unit Large Matter Pod (150) Large Matter Pod (150) Structural Scanner Small Laser Particle Gun Pulse Rifle Heavy Laser Peak State ------------ > --- POWER ------------ Light Ion Engine > --- PROPULSION ------- Light Treads Light Treads Light Treads > --- UTILITY ---------- Large Storage Unit Hacking Suite > --- WEAPON ----------- Pulse Rifle Light Assault Rifle > --- INVENTORY -------- Ion Engine Light Ion Engine Large Matter Pod Large Matter Pod Structural Scanner Small Laser Pulse Rifle Assault Rifle Light Assault Rifle Light Assault Rifle Light Assault Rifle Light Assault Rifle Light Assault Rifle Light Assault Rifle [Rating: 13] Favorites ----------- Power Light Ion Engine Engine Light Ion Engine Propulsion Aluminum Leg Treads Light Treads Leg Aluminum Leg Utility Large Storage Unit Device Heat Sink Storage Large Storage Unit Hackware Hacking Suite Weapon Light Assault Rifle Energy Gun Pulse Rifle Ballistic Gun Light Assault Rifle Build | -11 -10 -10 -10 -9 -8 ------- Run | Yrd Mat Min Exi Min Mat Slots Evolved 4 | . . . . . 4 Power . | . . . . . . Propulsion 4 | . . . . . 4 Utility . | . . . . . . Weapon . | . . . . . . Parts Attached 31 | 6 . 5 . 1 19 Power 3 | 1 . . . 1 1 Engine 3 | 1 . . . 1 1 Core . | . . . . . . Reactor . | . . . . . . Propulsion 9 | 2 . . . . 7 Treads 3 | . . . . . 3 Leg 6 | 2 . . . . 4 Wheel . | . . . . . . Hover . | . . . . . . Flight . | . . . . . . Utility 7 | 1 . 5 . . 1 Device 1 | . . 1 . . . Storage 5 | 1 . 4 . . . Processor . | . . . . . . Hackware 1 | . . . . . 1 Protection . | . . . . . . Artifact . | . . . . . . Weapon 12 | 2 . . . . 10 Energy Gun 2 | . . . . . 2 Energy Cannon . | . . . . . . Ballistic Gun 10 | 2 . . . . 8 Ballistic Cannon . | . . . . . . Launcher . | . . . . . . Special Weapon . | . . . . . . Impact Weapon . | . . . . . . Slashing Weapon . | . . . . . . Piercing Weapon . | . . . . . . Special Melee Weapon . | . . . . . . Unidentified Prototypes . | . . . . . . Parts Lost 15 | . . . . 1 14 Power 2 | . . . . 1 1 Propulsion 5 | . . . . . 5 Utility 1 | . . . . . 1 Weapon 7 | . . . . . 7 Highest Loss Streak 11 | . . . . 1 11 To Critical Strikes . | . . . . . . Average Slot Usage (%) 76 | . 85 94 100 99 57 Engine 10 | . 14 14 14 13 6 Treads 3 | . . . . . 7 Leg 18 | . 28 28 28 28 9 Storage 18 | . 14 22 28 28 12 Hackware 1 | . . . . . 3 Energy Gun 4 | . . . . . 8 Ballistic Gun 18 | . 28 28 28 28 9 Naked Turns . | . . . . . . Heaviest Build 32 | 11 11 29 29 29 32 Greatest Support 60 | 20 20 20 20 20 60 Greatest Overweight (x) 10 | . . 1 1 1 10 Average Overweight (x) . | . . . 1 1 . Largest Inventory Capacity 25 | 8 8 25 15 15 15 Average Capacity 13 | 7 8 9 15 15 15 Most Carried 15 | 6 8 8 8 10 15 Average Carried 9 | 3 7 6 8 8 12 Final Capacity 15 | 8 8 15 15 15 15 Final Carried 13 | 6 8 8 8 10 13 Class Distribution -------------------- 100% | Mutant Dominant Class ---------------- Mutant | -10/Materials Mutant | -10/Mines Mutant | -10/Exiles Mutant | -9/Mines Mutant | -8/Materials Resources | -11 -10 -10 -10 -9 -8 ----------- Run | Yrd Mat Min Exi Min Mat Matter Collected 862 | 147 28 132 . 43 512 Remotely . | . . . . . . Salvage Created 743 | . 44 42 . 60 597 Parts 52 | . 5 6 . 6 35 Haulers Intercepted 1 | . . . . . 1 Recyclers Shooed 3 | . 3 . . . . Parts Field Recycled . | . . . . . . Retrieved Matter . | . . . . . . Parts Self-Destructed . | . . . . . . Prevented . | . . . . . . Kills | -11 -10 -10 -10 -9 -8 ------- Run | Yrd Mat Min Exi Min Mat Combat Hostiles Destroyed 23 | . 3 3 . 4 13 Guns 23 | . 3 3 . 4 13 Classes Destroyed 6 | . 1 . . . 5 Worker 1 | . . . . . 1 Builder 1 | . . . . . 1 Hauler 1 | . . . . . 1 Swarmer 13 | . 3 3 . 4 3 Grunt 9 | . . . . . 9 Sentry 1 | . . . . . 1 Best Kill Streak 4 | . 3 3 . 4 3 Combat Bots Only 4 | . 3 3 . 4 3 Max Kills in Single Turn 2 | . 1 1 . 1 2 Gunslinging . | . . . . . . Exploded . | . . . . . . Melee . | . . . . . . Uniques/NPCs Destroyed . | . . . . . . Combat | -11 -10 -10 -10 -9 -8 -------- Run | Yrd Mat Min Exi Min Mat Hostile Shots Fired 251 | . 9 25 . 30 187 Missed 64 | . 2 7 . 8 47 Damage Taken 2216 | . 66 141 . 166 1843 Core 638 | . 38 21 . 28 551 Absorbed by Shields . | . . . . . . Core Remaining (%) 82 | 100 . . . 65 . Volleys Fired 86 | . 8 7 . 10 61 Largest 2 | . 2 2 . 2 2 Hottest 126 | . 40 40 . 40 126 Shots Fired 159 | . 16 14 . 20 109 Gun 159 | . 16 14 . 20 109 Cannon . | . . . . . . Launcher . | . . . . . . Special . | . . . . . . Kinetic 112 | . 16 14 . 20 62 Thermal 47 | . . . . . 47 Explosive . | . . . . . . Electromagnetic . | . . . . . . Robot Hit Streak 13 | . 3 2 . 3 13 Robot Miss Streak 4 | . 4 2 . 3 3 Penetration Max . | . . . . . . Secondary Targets 2 | . . . . 1 1 Max Gunslinging Chain 1 | . . . . 1 1 Shots Hit Robots 108 | . 5 6 . 9 88 Core Hits 55 | . 5 3 . 4 43 Critical Kills . | . . . . . . Critical Parts Destroyed . | . . . . . . Critical Strikes 2 | . . . . . 2 Burn 2 | . . . . . 2 Melee Attacks . | . . . . . . Impact . | . . . . . . Slashing . | . . . . . . Piercing . | . . . . . . Sneak Attacks . | . . . . . . Combat Hostiles . | . . . . . . Follow-up Attacks . | . . . . . . Damage Inflicted 1381 | 6 67 67 . 110 1131 Guns 1330 | . 56 67 . 110 1097 Cannons . | . . . . . . Explosions . | . . . . . . Melee . | . . . . . . Ramming 51 | 6 11 . . . 34 Kinetic 683 | . 56 67 . 110 450 Thermal 647 | . . . . . 647 Explosive . | . . . . . . Electromagnetic . | . . . . . . Impact . | . . . . . . Slashing . | . . . . . . Piercing . | . . . . . . Highest Corruption . | . . . . . . Average Corruption . | . . . . . . Corruption Purged . | . . . . . . Corruption Blocked . | . . . . . . Overload Shots . | . . . . . . Overflow Damage . | . . . . . . Projectiles . | . . . . . . Explosions . | . . . . . . Melee . | . . . . . . Knockbacks . | . . . . . . Impact . | . . . . . . Kinetic . | . . . . . . Secondary . | . . . . . . Self-Inflicted Damage . | . . . . . . Shots . | . . . . . . Rammed 5 | . . . . . 5 Targets Rammed 14 | 2 4 . . . 8 Kicked 9 | 2 4 . . . 3 Crushed . | . . . . . . Highest Temperature 531 | . . . . . 531 Average Temperature 131 | . . . . . 131 Received Heat Transfer 720 | . . . . . 720 Effects 4 | . . . . . 4 Shutdowns 1 | . . . . . 1 Interference 2 | . . . . . 2 Damage (core) 1 | . . . . . 1 Siege Activations . | . . . . . . Robots Corrupted . | . . . . . . Combat Hostiles . | . . . . . . Parts Fried . | . . . . . . Impact Corruptions . | . . . . . . Robots Melted . | . . . . . . Combat Hostiles . | . . . . . . Parts Melted 1 | . . . . . 1 Heat Transferred 1554 | . . . . . 1554 Parts Sabotaged . | . . . . . . Parts Stolen . | . . . . . . Parts Stripped . | . . . . . . Power Chain Reactions . | . . . . . . Alert | -11 -10 -10 -10 -9 -8 ------- Run | Yrd Mat Min Exi Min Mat Peak Influence 189 | . 115 114 . 80 189 Initial 44 | . . 44 . . 31 Average 47 | . 42 66 . 10 62 Maximum Alert Level . | . . . . . . Low Security (%) 100 | 100 100 100 . 100 100 Level 1 . | . . . . . . Level 2 . | . . . . . . Level 3 . | . . . . . . Level 4 . | . . . . . . Level 5 . | . . . . . . High Security . | . . . . . . Max Security . | . . . . . . Squads Dispatched . | . . . . . . Investigation . | . . . . . . Extermination . | . . . . . . Reinforcement . | . . . . . . Assault . | . . . . . . Garrison . | . . . . . . Intercept . | . . . . . . Searches Triggered . | . . . . . . Construction Impeded . | . . . . . . Haulers Reinforced . | . . . . . . Active Scanning Responses . | . . . . . . Cargo Convoy Interrupts . | . . . . . . Stealth | -11 -10 -10 -10 -9 -8 --------- Run | Yrd Mat Min Exi Min Mat Distress Signals 3 | . . . . . 3 Communications Jammed . | . . . . . . Distress Signals . | . . . . . . Times Spotted 48 | . 5 3 . 4 36 Peak Tracking Total 9 | . 3 3 . 4 9 Tactical Retreats 1 | . 1 . . . . Traps | -11 -10 -10 -10 -9 -8 ------- Run | Yrd Mat Min Exi Min Mat Traps Triggered . | . . . . . . Indirectly . | . . . . . . Trap Hack Attempts . | . . . . . . Triggered . | . . . . . . Disarmed 6 | . . . . . 6 Reprogrammed . | . . . . . . Reused . | . . . . . . Traps Extracted . | . . . . . . Installed . | . . . . . . Triggered . | . . . . . . Machines | -11 -10 -10 -10 -9 -8 ---------- Run | Yrd Mat Min Exi Min Mat Machines Disabled . | . . . . . . Max in Single Turn . | . . . . . . Machines Repaired . | . . . . . . Machines Dismantled . | . . . . . . Machines Sabotaged . | . . . . . . Overloaded Fab Kills . | . . . . . . Hacking | -11 -10 -10 -10 -9 -8 --------- Run | Yrd Mat Min Exi Min Mat Machines Accessed 3 | . 1 . . . 2 Terminals 3 | . 1 . . . 2 Fabricators . | . . . . . . Repair Stations . | . . . . . . Recycling Units . | . . . . . . Scanalyzers . | . . . . . . Garrison Access . | . . . . . . Total Hacks 6 | . 1 . . . 5 Successful 4 | . 1 . . . 3 Failed 2 | . . . . . 2 Catastrophic 1 | . . . . . 1 Database Lockouts . | . . . . . . Manual . | . . . . . . Terminals 6 | . 1 . . . 5 Fabricators . | . . . . . . Repair Stations . | . . . . . . Recycling Units . | . . . . . . Scanalyzers . | . . . . . . Garrison Access . | . . . . . . Terminal Hacks 4 | . 1 . . . 3 Record 1 | . 1 . . . . Scanalyzer Index 1 | . . . . . 1 Disarm Traps 1 | . . . . . 1 Hauler Manifests 1 | . . . . . 1 Fabricator Hacks . | . . . . . . Repair Station Hacks . | . . . . . . Recycling Unit Hacks . | . . . . . . Scanalyzer . | . . . . . . Garrison Access Hacks . | . . . . . . Unauthorized Hacks . | . . . . . . Terminals . | . . . . . . Fabricators . | . . . . . . Repair Stations . | . . . . . . Recycling Units . | . . . . . . Scanalyzers . | . . . . . . Garrison Access . | . . . . . . Data Cores Recovered . | . . . . . . Used . | . . . . . . Hacking Detections 2 | . . . . . 2 Full Trace Events 1 | . . . . . 1 Feedback Events . | . . . . . . Feedback Blocked . | . . . . . . Robot Schematics Acquired . | . . . . . . Robots Built . | . . . . . . Authchips . | . . . . . . Time . | . . . . . . Total Robot Build Rating . | . . . . . . Part Schematics Acquired . | . . . . . . Parts Built . | . . . . . . Authchips . | . . . . . . Time . | . . . . . . Total Part Build Rating . | . . . . . . Parts Repaired . | . . . . . . Time . | . . . . . . Parts Recycled . | . . . . . . Recycled Matter . | . . . . . . Retrieved Matter . | . . . . . . Retrieved Components . | . . . . . . Parts Scanalyzed . | . . . . . . Part Schematics Acquired . | . . . . . . Parts Damaged . | . . . . . . Bothacking | -11 -10 -10 -10 -9 -8 ------------ Run | Yrd Mat Min Exi Min Mat Used RIF Installer . | . . . . . . Robots Hacked . | . . . . . . Non-combat . | . . . . . . Combat . | . . . . . . Robot Hacks Applied . | . . . . . . Relay Couplers Released . | . . . . . . Fabnet Peak Effective % . | . . . . . . Robots Rewired . | . . . . . . Allies Hacked . | . . . . . . Hacks Repelled . | . . . . . . Allies | -11 -10 -10 -10 -9 -8 -------- Run | Yrd Mat Min Exi Min Mat Total Allies . | . . . . . . Largest Group . | . . . . . . Highest-Rated Group . | . . . . . . Highest-Rated Ally . | . . . . . . Total Orders . | . . . . . . Ally Attacks . | . . . . . . Total Damage . | . . . . . . Kills . | . . . . . . Allies Corrupted . | . . . . . . Allies Melted . | . . . . . . Intel | -11 -10 -10 -10 -9 -8 ------- Run | Yrd Mat Min Exi Min Mat Robot Analysis Total . | . . . . . . Derelict Logs Recovered 2 | . . 1 . 1 . Drone Launches . | . . . . . . Drone Recoveries . | . . . . . . Exploration | -11 -10 -10 -10 -9 -8 ------------- Run | Yrd Mat Min Exi Min Mat Turns Passed 2441 | 82 197 396 78 527 1161 Spaces Moved 1264 | 58 140 271 42 261 492 Core 26 | 10 . . . . 16 Treads 176 | . . . . . 176 Legs 1062 | 48 140 271 42 261 300 Wheels . | . . . . . . Hover . | . . . . . . Flight . | . . . . . . Fastest Speed 50 | 50 120 120 190 190 120 Average Speed 165 | 107 120 131 190 190 188 Slowest Speed 550 | 120 120 190 190 190 550 Overloaded Moves . | . . . . . . Propulsion Burnouts . | . . . . . . Robots Hopped . | . . . . . . Cave-ins Triggered . | . . . . . . Exploration Rate (%) 29 | 4 24 69 8 49 20 Regions Visited 5 Branch Regions 3 Pre-discovered Areas 1 | . . . . 1 . Known Exits Taken . | . . . . . . Unknown Exits Taken 5 | 1 1 1 1 1 . Scrap Searched 3 | . . 3 . . . Spaces Dug . | . . . . . . Terrain Destroyed . | . . . . . . Melee . | . . . . . . Projectile . | . . . . . . AOE . | . . . . . . Terrain Rammed . | . . . . . . Walls Destroyed . | . . . . . . Machines Disabled . | . . . . . . Actions | -11 -10 -10 -10 -9 -8 --------- Run | Yrd Mat Min Exi Min Mat Total 1474 | 77 155 303 41 275 623 Wait 20 | . . 5 . 1 14 Move 1259 | 57 139 270 41 260 492 Hop . | . . . . . . Pick Up 47 | 12 3 9 . 3 20 Fast Attach . | . . . . . . Attach 30 | 6 . 4 . 1 19 Detach 4 | . . . . . 4 Swap 1 | . . 1 . . . Drop 13 | . 1 7 . . 5 Fire 86 | . 8 7 . 10 61 Melee . | . . . . . . Ram 1 | . . . . . 1 Kick 9 | 2 4 . . . 3 Crush 4 | . . . . . 4 Escape Stasis . | . . . . . . Rewire . | . . . . . . Trap . | . . . . . . Miscellaneous . | . . . . . . Route ------- -11/Scrapyard -10/Materials -10/Mines -10/Exiles -9/Mines -8/Materials History --------- Turn | Location | Event 30 | -11/Scrapyard | Discovered new exit (range 15) 83 | -11/Scrapyard | Entered Materials 252 | -10/Materials | Discovered new exit (range 15) 280 | -10/Materials | Entered Mines 310 | -10/Mines | Build established: Mutant 588 | -10/Mines | Learned Materials non-interactive machine intel 663 | -10/Mines | Deemed a non-threat by the Exiles lab entrance 665 | -10/Mines | Discovered new exit (range 5) 676 | -10/Mines | Entered Exiles 722 | -10/Exiles | Discovered new exit (range 15) 754 | -10/Exiles | Entered Mines 1182 | -9/Mines | Learned location of Zion (-7) 1193 | -9/Mines | Discovered new exit (range 15) 1281 | -9/Mines | Entered Materials 1281 | -8/Materials | Evolved 4 slots: Propulsion x4 1282 | -8/Materials | Loaded intel: 52 non-interactive machine locations 2219 | -8/Materials | Core integrity fell below 50% 2241 | -8/Materials | Core integrity fell below 20% 2296 | -8/Materials | Lost 11 parts (3n1u7w) 2442 | -8/Materials | Destroyed by S-10 Pest with Light Assault Rifle Last Messages --------------- Lgt. Assault Rifle destroyed. K-01 Serf collects debris. Critical hit (Burn: +37). G-47 Trooper destroyed. K-01 Serf collects debris. Acquired 114 matter. K-01 Serf collects debris. Acquired Lgt. Angular Momentum Engine. Slammed into K-01 Serf. Acquired Aluminum Leg. Acquired Hvy. Laser. Acquired Lgt. Ion Engine. Acquired Flight Unit. Acquired Particle Gun. Acquired 13 matter. Acquired Lgt. Ion Engine. Acquired Lgt. Nuclear Core. Acquired 25 matter. Kicked R-06 Scavenger out of the way. W-25 Informer sends out distress signal. Map ----- +----------------------------------------------------+ | ??????????????????????????#####???????########???? | | ???????????????????######## ##########??######## | | ???????????????????# # # #??#!!]]]]# | | ???????????????????# "T" # # #??#!!]]]]# | | ???????????????????# + # #??# # | | ???????????????????# # # #??# # | | ???????????????????# # #! ! #??# | | ???????????????????# # # #??# ###### | | ???????????????????######## # #### ###### | | ??????????????????????????# # %%/! #|! | | ??????????????????????????# # # # ! | | ??????????????????????????# #####+#### # ! | | ??????????????????????????# # | | ??????????????????????????# + / | | ??????????????????????????# # | | ??????????????????????????######## ##### | | ?????????????????????????????????# #???# ] | | ?????????????????????#######?????# #???###### | | ?????????????????????# ####### #????????? | | ?????????????????????# #????????? | | ?????????????????????# #????????? | | ?????????????????????# % #????????? | | ?????????????????????# ############ #??????? | | ?????????????????????## %##??????????? #??????? | | ????????"""???????????# #???????????? #??????? | | ????????"""?????"""???# @#??"""??????? #??????? | | ????????"""?????"""???# +??"""??????? #??????? | | ????????????????"""???# #??"""??????? #??????? | | ????????"""???????????# #???????????? #??????? | | ????????"""?????"""???# #???????????? ????????? | | ????????"""?????"""???# #??????????????????????? | | ????????????????"""???# s #?????????????????"""??? | | ??????????????????????# #?????????????????"""??? | | ??????????????????????# #?????????????????"""??? | | ?????????????????????? ???????????????????????? | | ?????????????????????? ???????????????????????? | | ?????????????????????? t ???????????????????????? | | ?????????????????????#####???????????????????????? | | ?????????????????????????????????????????????????? | | ?????????????????????"""?"""?????????????????????? | | ?????????????????????"""?"""?????????????????????? | | ???"""???????????????"""?"""?????????????????????? | | ???"""?????????????????????????????"""?"""???????? | | ???"""?????????????????????????????"""?"""???????? | | ???????????????????????????????????"""?"""???????? | | ???"""???????????????????????????????????????????? | | ???"""???????????????????????????????????????????? | | ???"""???????????????????????????????????????????? | | ?????????????????????????????????????????????????? | | ?????????????????????????????????????????????????? | +----------------------------------------------------+ Best States ------------- Heat Dissipation 35 Energy Generation 10 Energy Capacity 250 Matter Stores 422 Matter Capacity 450 Sight Range 16 Terrain Scan Density 10 Evasion (%) 55 Recoil Reduction 3 Offensive Hacking 10 Item Schematics ----------------- None Robot Schematics ------------------ None Fabricated ------------ Nothing Alien Tech Used ----------------- None Achievements -------------- Tourist Challenges ------------ None Game ------ Seed TrapFortressFlamer Manual? 0 Play Time 00:26:37 Cumulative 3.0 hours Start 2024.05.24 @ 20:11:10 End 2024.05.24 @ 20:41:41 Sessions 1 Manual Loads 0 Difficulty Rogue Special Mode None Game No. 5 Rogue 5 Adventurer 0 Explorer 0 Win Type - Total 0 Types 0/0/0/0/0/0/0/0/0 Lore% 2 Gallery% 7 Achievement% 7 Wizard Run 0 Options --------- Layout 1 ASCII 0 Keyboard 0 Movement Numpad Keybinds 0 Fullscreen 1 Font 24/Smallcaps Map View 50x35 Zoom Use 0% Tactical HUD 0 Map Filters NONE Filters NONE Steam 1 RUN: ea739dfa-29cd-468a-9e6f-b6593b94eb15